Cogmind - Beta 17.1 @@@ ROGUE MODE // 2026.09.23 @ 00:05:10 Player: MORONI274 Result: Destroyed by as-33170 with Assembled Maul Performance ------------- Evolutions (1) 500 Regions Visited (3) 600 Robots Destroyed (34) 170 Value Destroyed (847) 847 Prototype IDs (0) 0 Alien Tech Used (0) 0 Bonus (-14) -14 TOTAL SCORE: 2103 Bonus ------- Friendly Fire -14 Cogmind --------- Core Integrity 0/400 Matter 95/300 Energy 125/125 System Corruption 9% Temperature Cool (0) Movement Rolling (95) Ox1 Location -9/Mines Parts ------- > --- POWER (1) -------- Light Ion Engine > --- PROPULSION (3) --- Wheel Wheel > --- UTILITY (3) ------ Large Storage Unit Improved Light Armor Plating > --- WEAPON (2) ------- Heavy Assault Rifle Heavy Assault Rifle > --- INVENTORY (15) --- Light Ion Engine Small Matter Pod (0) Structural Scanner Terrain Scan Processor Terrain Scan Processor Seismic Detector Light EM Pulse Cannon Mining Laser Mining Laser Makeshift Axe Peak State ------------ > --- POWER ------------ Light Ion Engine > --- PROPULSION ------- Compact Wheel Compact Wheel Compact Wheel > --- UTILITY ---------- Large Storage Unit Structural Scanner Improved Terrain Scanner > --- WEAPON ----------- Particle Cannon Heavy Assault Rifle > --- INVENTORY -------- Ion Engine Light Ion Engine Light Ion Engine Small Matter Pod Structural Scanner Terrain Scan Processor Terrain Scan Processor Shield Generator Particle Cannon Heavy Assault Rifle Heavy Assault Rifle Heavy Assault Rifle Grenade Launcher Mining Laser Welding Torch [Rating: 15] Favorites ----------- Power Ion Engine Engine Ion Engine Propulsion Light Treads Treads Light Treads Leg Aluminum Leg Wheel Compact Wheel Utility Large Storage Unit Device Improved Terrain Scanner Storage Large Storage Unit Protection Core Shielding Weapon Heavy Assault Rifle Energy Gun Medium Laser Energy Cannon Particle Cannon Ballistic Gun Heavy Assault Rifle Ballistic Cannon Light Cannon Launcher Grenade Launcher Special Weapon Mining Laser Build | -11 -10 -9 -9 ------- Run | Yrd Mat Mat Min Slots Evolved 2 | . . 2 . Power . | . . . . Propulsion 1 | . . 1 . Utility 1 | . . 1 . Weapon . | . . . . Parts Attached 38 | 7 6 13 12 Power 4 | 1 . 2 1 Engine 4 | 1 . 2 1 Core . | . . . . Reactor . | . . . . Propulsion 11 | 2 1 4 4 Treads 2 | 2 . . . Leg 2 | . . 2 . Wheel 7 | . 1 2 4 Hover . | . . . . Flight . | . . . . Utility 8 | 2 1 3 2 Device 3 | 1 . 1 1 Storage 3 | 1 1 1 . Processor . | . . . . Hackware . | . . . . Protection 2 | . . 1 1 Artifact . | . . . . Weapon 15 | 2 4 4 5 Energy Gun 1 | 1 . . . Energy Cannon 4 | . 1 1 2 Ballistic Gun 5 | 1 3 . 1 Ballistic Cannon 1 | . . . 1 Launcher 2 | . . 1 1 Special Weapon 2 | . . 2 . Impact Weapon . | . . . . Slashing Weapon . | . . . . Piercing Weapon . | . . . . Special Melee Weapon . | . . . . Unidentified Prototypes . | . . . . Parts Lost 23 | . . 9 14 Power 3 | . . 1 2 Propulsion 9 | . . 4 5 Utility 4 | . . 2 2 Weapon 7 | . . 2 5 Highest Loss Streak 7 | . . 6 7 To Critical Strikes . | . . . . Average Backups 10 | 5 9 14 10 Power 1 | . 1 2 1 Propulsion 1 | 3 2 . . Utility 2 | . 1 4 4 Weapon 4 | . 4 6 4 Tool/Special . | . . . . Unused Backups 12 | . 4 1 7 Power 2 | . . 1 1 Propulsion 2 | . 2 . . Utility 5 | . 1 . 4 Weapon 3 | . 1 . 2 Tool/Special . | . . . . Average Slot Usage (%) 88 | . 100 90 74 Engine 11 | . 14 10 9 Treads 9 | . 26 4 . Leg 3 | . . 3 7 Wheel 8 | . 1 18 5 Device 10 | . 14 13 3 Storage 16 | . 14 16 17 Protection 4 | . . 1 10 Energy Gun 2 | . 7 . . Energy Cannon 5 | . . 7 8 Ballistic Gun 13 | . 20 11 9 Launcher 1 | . . 2 2 Peak Build Rating 15 | 9 13 15 14 Average Rating 10 | 5 10 12 10 On Entrance 8 | . 9 13 12 Avg Prop Armor Cover (%) 6 | . 14 2 7 Naked Turns . | . . . . Heaviest Build 35 | 14 32 34 35 Greatest Support 48 | 40 40 48 30 Greatest Overweight (x) 11 | . . 3 11 Average Overweight (x) . | . . . 2 Largest Inventory Capacity 15 | 8 15 15 15 Average Capacity 12 | 7 10 15 15 Most Carried 15 | 8 15 15 14 Average Carried 10 | 5 9 14 10 Final Capacity 15 | 8 15 15 15 Final Carried 15 | 8 15 14 10 Class Distribution -------------------- 90% | Mutant 9% | Scavenger-Mutant Dominant Class ---------------- Mutant | -10/Materials Mutant | -9/Materials Mutant | -9/Mines Resources | -11 -10 -9 -9 ----------- Run | Yrd Mat Mat Min Matter Collected 824 | 283 116 282 143 Remotely . | . . . . Salvage Created 1226 | 102 345 599 180 Parts 72 | 8 16 36 12 Haulers Intercepted 1 | . . 1 . Recyclers Shooed 1 | . 1 . . Parts Field Recycled . | . . . . Retrieved Matter . | . . . . Parts Self-Destructed . | . . . . Prevented . | . . . . Parts Restored . | . . . . Kills | -11 -10 -9 -9 ------- Run | Yrd Mat Mat Min Combat Hostiles Destroyed 33 | . 7 12 14 Guns 20 | . 6 7 7 Cannons 9 | . 1 5 3 AOE 4 | . . . 4 Classes Destroyed 12 | 2 3 4 3 Builder 1 | . . . 1 Tunneler 1 | 1 . . . Hauler 1 | . . 1 . Recycler 2 | 1 . 1 . Operator 2 | . 1 1 . Watcher 2 | . 1 1 . Swarmer 8 | . . 4 4 Grunt 12 | . 7 5 . Duelist 1 | . . 1 . Sentry 2 | . . 2 . Demolisher 2 | . . . 2 Assembled 8 | . . . 8 Best Kill Streak 6 | 1 4 6 4 Combat Bots Only 4 | . 4 2 4 Max Kills in Single Turn 2 | 1 1 2 2 Gunslinging . | . . . . Exploded 2 | . . . 2 Melee . | . . . . Uniques/NPCs Destroyed . | . . . . Combat | -11 -10 -9 -9 -------- Run | Yrd Mat Mat Min Hostile Shots Fired 190 | . 48 55 87 Missed 39 | . 11 14 14 Hits 151 | . 37 41 73 Melee 24 | . . 9 15 Projectile 127 | . 37 32 58 AOE 15 | . . . 15 Critical Strikes 1 | . . . 1 Part Disruptions 2 | . . . 2 Damage Taken 2582 | . 484 645 1453 Core 511 | . 98 163 250 Absorbed by Shields 83 | . . . 83 Redirected to Shielding 25 | . . . 25 Regen/Repaired (Parts) 27 | . . 27 . Core Remaining (%) 80 | 100 60 . . Volleys Fired 129 | 13 28 39 49 Largest 2 | 2 2 2 2 Hottest 124 | 70 91 100 124 Shots Fired 232 | 26 56 73 77 Gun 168 | 26 52 40 50 Cannon 45 | . 4 25 16 Launcher 12 | . . 1 11 Special 7 | . . 7 . Kinetic 139 | 13 31 40 55 Thermal 75 | 13 25 32 5 Explosive 12 | . . 1 11 Electromagnetic 6 | . . . 6 Robot Hit Streak 6 | 5 6 6 6 Robot Miss Streak 5 | 4 4 3 5 Penetration Max . | . . . . Secondary Targets 1 | . . . 1 Max Gunslinging Chain 1 | . . . 1 Shots Hit Robots 131 | 14 30 41 46 Core Hits 66 | 3 17 17 29 Critical Kills 2 | . 1 1 . Critical Parts Destroyed . | . . . . Critical Strikes 5 | 1 3 1 . Burn 3 | 1 2 . . Destroy 2 | . 1 1 . Melee Attacks . | . . . . Impact . | . . . . Slashing . | . . . . Piercing . | . . . . Sneak Attacks . | . . . . Combat Hostiles . | . . . . Follow-up Attacks . | . . . . Damage Inflicted 2242 | 141 437 787 877 Guns 1259 | 141 365 330 423 Cannons 657 | . 62 431 164 Explosions 290 | . . . 290 Melee . | . . . . Ramming 29 | . 10 19 . Kinetic 1062 | 64 177 330 491 Thermal 785 | 77 250 438 20 Explosive 290 | . . . 290 Electromagnetic 76 | . . . 76 Impact . | . . . . Slashing . | . . . . Piercing . | . . . . Highest Corruption 9 | . . 1 9 Average Corruption 2 | . . 1 3 Corruption Purged . | . . . . Corruption Blocked . | . . . . Effects 11 | . . . 11 Matter Fused 1 | . . . 1 Heat Flow Errors 1 | . . . 1 Energy Discharges 1 | . . . 1 Parts Rejected 1 | . . . 1 Data Loss (minor) 3 | . . . 3 Misfires 1 | . . . 1 Weapon Failures 3 | . . . 3 Overload Shots . | . . . . Overflow Damage 32 | . . 9 23 Projectiles 9 | . . 9 . Explosions 23 | . . . 23 Melee . | . . . . Knockbacks 1 | . . 1 . Impact 1 | . . 1 . Kinetic . | . . . . Secondary . | . . . . Self-Inflicted Damage 94 | . 5 35 54 Shots 3 | . . 1 2 Rammed 8 | . 1 7 . Targets Rammed 8 | . 1 7 . Kicked . | . . . . Crushed . | . . . . Highest Temperature 269 | 130 269 93 218 Average Temperature 64 | 50 90 27 91 Received Heat Transfer 637 | . 267 72 298 Siege Activations . | . . . . Martial Activations . | . . . . Shielding Activations . | . . . . Robots Disrupted . | . . . . Combat Hostiles . | . . . . Robots Corrupted . | . . . . Combat Hostiles . | . . . . Parts Fried 2 | . 2 . . Impact Corruptions 1 | . 1 . . Robots Melted . | . . . . Combat Hostiles . | . . . . Parts Melted . | . . . . Heat Transferred 1974 | 296 814 827 37 Parts Sabotaged . | . . . . Parts Stolen . | . . . . Parts Stripped . | . . . . Power Chain Reactions . | . . . . Alert | -11 -10 -9 -9 ------- Run | Yrd Mat Mat Min Maximum Alert Level . | . . . . Low Security (%) 100 | 100 100 100 100 Level 1 . | . . . . Level 2 . | . . . . Level 3 . | . . . . Level 4 . | . . . . Level 5 . | . . . . High Security . | . . . . Max Security . | . . . . Peak Influence 115 | 5 97 115 102 Initial 13 | . . 2 13 Average 39 | . 43 63 26 Influence Increases 756 | 10 197 354 195 Destroy 0b10 Robot/C 500 | . 140 240 120 Destroy 0b10 Robot/NC 45 | 10 10 20 5 Destroy Leader 106 | . 32 54 20 Destroy Structure 60 | . . 10 50 Lose Combat Pursuer 45 | . 15 30 . Influence Decreases 756 | 10 190 327 229 Entered New Map 26 | . . 5 21 Time Decay 570 | 10 190 232 138 Lost Part 160 | . . 90 70 Squads Dispatched 2 | . 1 1 . Investigation . | . . . . Extermination . | . . . . Reinforcement 2 | . 1 1 . Assault . | . . . . Garrison . | . . . . Intercept . | . . . . Searches Triggered . | . . . . Construction Impeded . | . . . . Haulers Reinforced . | . . . . Active Scanning Responses . | . . . . Cargo Convoy Interrupts . | . . . . Stealth | -11 -10 -9 -9 --------- Run | Yrd Mat Mat Min Distress Signals 3 | . 1 . 2 Communications Jammed . | . . . . Distress Signals . | . . . . Times Spotted 49 | . 15 17 17 Peak Tracking Total 4 | . 4 4 3 Tactical Retreats 5 | . 1 1 3 Traps | -11 -10 -9 -9 ------- Run | Yrd Mat Mat Min Traps Triggered 1 | . 1 . . Indirectly . | . . . . Trap Hack Attempts . | . . . . Triggered . | . . . . Disarmed . | . . . . Reprogrammed . | . . . . Reused . | . . . . Traps Extracted . | . . . . Installed . | . . . . Triggered . | . . . . Machines | -11 -10 -9 -9 ---------- Run | Yrd Mat Mat Min Machines Disabled . | . . . . Max in Single Turn . | . . . . Machines Repaired . | . . . . Machines Dismantled . | . . . . Machines Sabotaged . | . . . . Overloaded Fab Kills . | . . . . Hacking | -11 -10 -9 -9 --------- Run | Yrd Mat Mat Min Machines Accessed 2 | . . 2 . Terminals 1 | . . 1 . Fabricators . | . . . . Repair Stations 1 | . . 1 . Recycling Units . | . . . . Scanalyzers . | . . . . Garrison Access . | . . . . Total Hacks 4 | . . 4 . Successful 3 | . . 3 . Failed 1 | . . 1 . Catastrophic . | . . . . Database Lockouts . | . . . . Manual . | . . . . Terminals 2 | . . 2 . Fabricators . | . . . . Repair Stations 2 | . . 2 . Recycling Units . | . . . . Scanalyzers . | . . . . Garrison Access . | . . . . Terminal Hacks 1 | . . 1 . Investigation Status 1 | . . 1 . Fabricator Hacks . | . . . . Repair Station Hacks 2 | . . 2 . Scan Component 1 | . . 1 . Repair 1 | . . 1 . Recycling Unit Hacks . | . . . . Scanalyzer . | . . . . Garrison Access Hacks . | . . . . Unauthorized Hacks . | . . . . Terminals . | . . . . Fabricators . | . . . . Repair Stations . | . . . . Recycling Units . | . . . . Scanalyzers . | . . . . Garrison Access . | . . . . Data Cores Recovered . | . . . . Used . | . . . . Hacking Detections 2 | . . 2 . Full Trace Events . | . . . . Feedback Events . | . . . . Feedback Blocked . | . . . . Robot Schematics Acquired . | . . . . Robots Built . | . . . . Authchips . | . . . . Time . | . . . . Total Robot Build Rating . | . . . . Part Schematics Acquired . | . . . . Parts Built . | . . . . Authchips . | . . . . Time . | . . . . Total Part Build Rating . | . . . . Part Studies Acquired . | . . . . Parts Repaired 1 | . . 1 . Time 26 | . . 26 . Parts Recycled . | . . . . Recycled Matter . | . . . . Retrieved Matter . | . . . . Retrieved Components . | . . . . Parts Scanalyzed . | . . . . Part Schematics Acquired . | . . . . Parts Damaged . | . . . . Bothacking | -11 -10 -9 -9 ------------ Run | Yrd Mat Mat Min Used RIF Installer . | . . . . Robots Hacked . | . . . . Non-combat . | . . . . Combat . | . . . . Robot Hacks Applied . | . . . . Relay Couplers Released . | . . . . Fabnet Peak Effective % . | . . . . Robots Rewired . | . . . . Allies Hacked . | . . . . Hacks Repelled . | . . . . Allies | -11 -10 -9 -9 -------- Run | Yrd Mat Mat Min Total Allies . | . . . . Largest Group . | . . . . Highest-Rated Group . | . . . . Highest-Rated Ally . | . . . . Total Orders . | . . . . Ally Attacks . | . . . . Total Damage . | . . . . Kills . | . . . . Allies Corrupted . | . . . . Allies Melted . | . . . . Intel | -11 -10 -9 -9 ------- Run | Yrd Mat Mat Min Active Infowar (turns) 995 | 42 497 456 . Terrain 833 | 42 497 294 . Structural 428 | . . 428 . Robot Analysis Total . | . . . . Derelict Logs Recovered . | . . . . Drone Launches . | . . . . Drone Recoveries . | . . . . Exploration | -11 -10 -9 -9 ------------- Run | Yrd Mat Mat Min Turns Passed 1856 | 228 497 595 536 Spaces Moved 836 | 112 253 321 150 Core 22 | 5 . . 17 Treads 387 | 107 227 53 . Legs 118 | . . 44 74 Wheels 309 | . 26 224 59 Hover . | . . . . Flight . | . . . . Fastest Speed 50 | 50 100 100 95 Average Speed 161 | 155 153 127 251 Slowest Speed 600 | 160 160 330 600 Overloaded Moves . | . . . . Propulsion Burnouts . | . . . . Robots Hopped . | . . . . Potential Cave-ins 4 | . . . 4 Cave-ins Triggered . | . . . . Exploration Rate (%) 24 | 4 49 29 16 Regions Visited 3 Branch Regions 1 Pre-discovered Areas . | . . . . Known Exits Taken . | . . . . Unknown Exits Taken 3 | 1 1 1 . Scrap Searched . | . . . . Spaces Dug 2 | . . 2 . Terrain Destroyed 74 | . . 9 65 Melee . | . . . . Projectile 5 | . . 2 3 AOE 69 | . . 7 62 Terrain Rammed . | . . . . Walls Destroyed . | . . . . Machines Disabled . | . . . . Actions | -11 -10 -9 -9 --------- Run | Yrd Mat Mat Min Total 1100 | 140 309 425 226 Wait 40 | . . 33 7 Move 833 | 111 252 320 150 Hop . | . . . . Pick Up 31 | 9 12 6 4 Fast Attach 21 | 6 2 7 6 Attach 14 | 1 . 5 8 Detach . | . . . . Swap 14 | . 7 5 2 Drop 10 | . 7 3 . Fire 129 | 13 28 39 49 Melee . | . . . . Ram 8 | . 1 7 . Kick . | . . . . Crush . | . . . . Escape Stasis . | . . . . Rewire . | . . . . Trap . | . . . . Miscellaneous . | . . . . Route ------- -11/Scrapyard -10/Materials -9/Materials -9/Mines History --------- Turn | Location | Event 9 | -11/Scrapyard | Discovered new exit (range 15) 229 | -11/Scrapyard | Entered Materials 308 | -10/Materials | Build established: Mutant 670 | -10/Materials | Discovered new exit (range 7) 726 | -10/Materials | Entered another Materials area 726 | -9/Materials | Evolved 2 slots: Propulsion x1, Utility x1 1123 | -9/Materials | Repaired Com. Wheel 1233 | -9/Materials | Lost 6 parts (1p2n1u2w) 1301 | -9/Materials | Discovered new exit (range 6) 1321 | -9/Materials | Entered Mines 1360 | -9/Mines | Assembled infested the area 1365 | -9/Mines | Assisted by a Guerilla fighting off Assembled 1408 | -9/Mines | Core integrity fell below 50% 1453 | -9/Mines | Lost 7 parts (1p2n4w) 1518 | -9/Mines | A weapon hastily lodged in a ceiling crevice suddenly fell to the ground 1636 | -9/Mines | Core integrity fell below 20% 1666 | -9/Mines | Lost 4 parts (1p1n1u1w) 1857 | -9/Mines | Destroyed by as-33170 with Assembled Maul Last Messages --------------- 01838_ U-05 Engineer builds a Wall. 01838_ K-01 Serf collects debris. 01838_ Acquired Wheel. 01839_ Extracted 4 matter. 01840_ Destroyed Asb. Hover Unit. 01841_ K-01 Serf collects debris. 01842_ U-05 Engineer builds a Wall. 01844_ K-01 Serf collects debris. 01846_ as-33170 sneak attacks. 01846_ U-05 Engineer system corrupted by crushing effect. 01846_ U-05 Engineer destroyed. 01846_ System corrupted: Hvy. Assault Rifle jammed. 01846_ as-80471 destroyed. 01847_ K-01 Serf collects debris. 01849_ as-72558 destroyed. 01851_ K-01 Serf collects debris. 01854_ Wheel destroyed. 01854_ System corrupted by crushing effect (+3). Map ----- +----------------------------------------------------+ | ?????????????????????????????????????????????????? | | ?????????????????????????????????????????????????? | | ???????????????????????????????????????????????### | | ??????????????????????????????????????????????## | | ?????????????????????????????????????????????#### | | ?????????????????????????????????????????????# ### | | ?????????????????????????????????????????????# # # | | ?????????????????????????????????????????????# # | | ?????????????????????????????????????????????# # | | ?????????????????????????????????????????????## | | ????????????????????????????????????????###### | | ????????????????????????????????????????# # | | ??????????????????#???????????????#####?# # | | ??????????????????#=????????????### #### | | ??????????????#???#%##??????????# # # # | | ??????????????# ###!% #####??#### # # # | | ??????????????# # #### # # % | | ??????????????# !### # ## #% | | ??????????????????# % # * ! % | | ??????????????????# #### #%! ## | | ??????????????????## ! % = #####? | | ??????????????????# # %%% ## # # # # ####????? | | ??????????????????# %# ## # ##########???????? | | ??????????????????# ##%=#% ## #???????????????? | | ??????????????????# #*!#%a#######???????????????? | | ??????????????????# #[%#@%!#????????????????????? | | ??????????????????# #!=#% ##????????????????????? | | ?????????????????# =!!#= #?????????????????????? | | ???????????????? % | #= ?????????????????????? | | ???????????????### =## #=k=%????????????????????? | | ?????????????????##% ######???????????????????? | | ??????????????????# ????????????????????????? | | ??????????????????#% ####????????????????????????? | | ???????????????????%?????????????????????????????? | | ?????????????????????????????????????????????????? | | ?????????????????????????????????????????????????? | | ?????????????????????????????????????????????????? | | ?????????????????????????????????????????????????? | | ?????????????????????????????????????????????????? | | ?????????????????????????????????????????????????? | | ?????????????????????????????????????????????????? | | ?????????????????????????????????????????????????? | | | | | | | | | | | | | | | | | +----------------------------------------------------+ Best States ------------- Heat Dissipation 28 Energy Generation 10 Energy Capacity 250 Matter Stores 350 Matter Capacity 350 Sight Range 16 Terrain Scan Range 16 Terrain Scan Density 10 Armor Coverage 150 Core Shielding 20 Evasion (%) 41 Recoil Reduction 2 Item Schematics ----------------- None Robot Schematics ------------------ None Fabricated ------------ Nothing Repaired ---------- Com. Wheel | 10% | -9/Materials Studied --------- None Alien Tech Used ----------------- None Achievements -------------- None Challenges ------------ None Game ------ Seed DynamicPlasmaAutocannon Manual? 0 Play Time 00:22:07 Cumulative 22.0 hours Start 2026.09.22 @ 23:44:29 End 2026.09.23 @ 00:05:10 Sessions 1 Manual Loads 0 Difficulty Rogue Special Mode None Game No. 49 Rogue 49 Adventurer 0 Explorer 0 Win Type - Total 0 Types 0/0/0/0/0/0/0/0/0/0 Lore% 12 Gallery% 20 Achievement% 17 Wizard Run 0 Options --------- Layout 1 ASCII 0 Keyboard 0 Movement Arrows Keybinds 0 Fullscreen 2 Font 24/Smallcaps Map View 50x35 Zoom Use 0% Tactical HUD 1 Map Filters NONE Filters NONE Steam 1 RUN: e1fd8978-08cb-47cf-ae6d-fc79bc74eef6